[Event "*** Titled Tuesday Blitz"]
[Site "Chess.com"]
[Date "2020.04.21"]
[Round "2"]
[White "flomarechot"]
[Black "Keks2017"]
[Result "0-1"]
[WhiteElo "2108"]
[BlackElo "2399"]
[TimeControl "180+1"]
[EndTime "10:17:31 PDT"]
[Termination "Keks2017 won by resignation"]

1. d4 {[%clk 0:03:00.9]} 1... d6 {[%clk 0:02:59.7]} 2. Nf3 {[%clk 0:03:00.7]}
2... Nf6 {[%clk 0:02:59.7]} 3. g3 {[%clk 0:03:00.4]} 3... g6 {[%clk 0:02:57]} 4.
Bg2 {[%clk 0:03:00.5]} 4... Bg7 {[%clk 0:02:57.1]} 5. O-O {[%clk 0:03:01]} 5...
O-O {[%clk 0:02:56.7]} 6. c4 {[%clk 0:03:01.9]} 6... Nbd7 {[%clk 0:02:56.3]} 7.
Nc3 {[%clk 0:03:02]} 7... e5 {[%clk 0:02:55.9]} 8. e4 {[%clk 0:03:01.7]} 8... c6
{[%clk 0:02:55.9]} 9. h3 {[%clk 0:02:59.2]} 9... a5 {[%clk 0:02:55.3]} 10. dxe5
{[%clk 0:02:55.2]} 10... dxe5 {[%clk 0:02:54.8]} 11. Qd6 {[%clk 0:02:54.8]}
11... Ne8 {[%clk 0:02:52.6]} 12. Qd2 {[%clk 0:02:43.1]} 12... Nc7 {[%clk
0:02:52.3]} 13. Rd1 {[%clk 0:02:41.1]} 13... Ne6 {[%clk 0:02:50.8]} 14. Qd6
{[%clk 0:02:34.6]} 14... Re8 {[%clk 0:02:48.6]} 15. Be3 {[%clk 0:02:28]} 15...
Bf8 {[%clk 0:02:43.5]} 16. Qd2 {[%clk 0:02:27]} 16... Qc7 {[%clk 0:02:43.1]} 17.
Ng5 {[%clk 0:02:15.1]} 17... Ndc5 {[%clk 0:02:39.6]} 18. Nxe6 {[%clk 0:02:14.4]}
18... Nxe6 {[%clk 0:02:39.3]} 19. h4 {[%clk 0:02:10.1]} 19... Bg7 {[%clk
0:02:34.7]} 20. Qd6 {[%clk 0:02:07.1]} 20... Qxd6 {[%clk 0:02:34.2]} 21. Rxd6
{[%clk 0:02:08]} 21... Nd4 {[%clk 0:02:33.5]} 22. Bxd4 {[%clk 0:01:52.7]} 22...
exd4 {[%clk 0:02:33.2]} 23. Ne2 {[%clk 0:01:53.2]} 23... Be5 {[%clk 0:02:31.9]}
24. Rxd4 {[%clk 0:01:45.5]} 24... Bxd4 {[%clk 0:02:31.4]} 25. Nxd4 {[%clk
0:01:46.4]} 25... Rd8 {[%clk 0:02:30.9]} 26. Nf3 {[%clk 0:01:11.7]} 26... Be6
{[%clk 0:02:29.1]} 27. b3 {[%clk 0:01:10.6]} 27... a4 {[%clk 0:02:29.1]} 28. Rb1
{[%clk 0:01:09.1]} 28... axb3 {[%clk 0:02:28.5]} 29. axb3 {[%clk 0:01:10]} 29...
Ra2 {[%clk 0:02:27.6]} 30. Bf1 {[%clk 0:01:03.5]} 30... h6 {[%clk 0:02:22.7]}
31. b4 {[%clk 0:01:02.9]} 31... Bg4 {[%clk 0:02:14.9]} 32. Ne5 {[%clk
0:01:02.6]} 32... Be6 {[%clk 0:02:12.3]} 33. Nf3 {[%clk 0:01:01.7]} 33... f6
{[%clk 0:02:07.7]} 34. b5 {[%clk 0:01:01.7]} 34... c5 {[%clk 0:02:05.6]} 35. b6
{[%clk 0:00:58.5]} 35... Bg4 {[%clk 0:02:03.3]} 36. Nh2 {[%clk 0:00:58.7]} 36...
h5 {[%clk 0:02:01.8]} 37. Nxg4 {[%clk 0:00:34.6]} 37... hxg4 {[%clk 0:02:00.9]}
38. e5 {[%clk 0:00:35.5]} 38... f5 {[%clk 0:01:58.2]} 39. Bg2 {[%clk 0:00:35.6]}
39... Rd7 {[%clk 0:01:44.3]} 40. Bd5+ {[%clk 0:00:34.8]} 40... Kg7 {[%clk
0:01:40.4]} 41. Rb5 {[%clk 0:00:34.4]} 41... Ra6 {[%clk 0:01:33.2]} 42. Kg2
{[%clk 0:00:27.2]} 42... Re7 {[%clk 0:01:32.1]} 43. e6 {[%clk 0:00:23.2]} 43...
Kf6 {[%clk 0:01:31.9]} 44. Rxc5 {[%clk 0:00:21.4]} 44... Rxb6 {[%clk 0:01:30.7]}
45. Rc8 {[%clk 0:00:20.7]} 45... Rb2 {[%clk 0:01:26.5]} 46. Rf8+ {[%clk
0:00:20.5]} 46... Ke5 {[%clk 0:01:26.3]} 47. Rf7 {[%clk 0:00:20.3]} 47... Re8
{[%clk 0:01:21]} 48. Bxb7 {[%clk 0:00:19.9]} 48... Rxe6 {[%clk 0:01:19.2]} 49.
Bd5 {[%clk 0:00:20.4]} 49... Ra6 {[%clk 0:01:15.5]} 50. Re7+ {[%clk 0:00:20]}
50... Kd4 {[%clk 0:01:15.2]} 51. Rg7 {[%clk 0:00:19.2]} 51... Raa2 {[%clk
0:01:14.4]} 52. Rxg6 {[%clk 0:00:18.9]} 52... Rxf2+ {[%clk 0:01:14.1]} 53. Kg1
{[%clk 0:00:19.8]} 53... Rfb2 {[%clk 0:01:12.6]} 54. Bg2 {[%clk 0:00:06.6]}
54... Rxg2+ {[%clk 0:01:10.8]} 0-1

[Event "*** Titled Tuesday Blitz"]
[Site "Chess.com"]
[Date "2020.04.21"]
[Round "2"]
[White "chenrip"]
[Black "warmoatmeal"]
[Result "1-0"]
[WhiteElo "2375"]
[BlackElo "1971"]
[TimeControl "180+1"]
[EndTime "10:17:32 PDT"]
[Termination "chenrip won by resignation"]

1. e4 {[%clk 0:03:00.9]} 1... c6 {[%clk 0:02:57.2]} 2. d4 {[%clk 0:03:00.4]}
2... d5 {[%clk 0:02:55.5]} 3. e5 {[%clk 0:03:00.2]} 3... c5 {[%clk 0:02:55]} 4.
c3 {[%clk 0:02:57.7]} 4... Nc6 {[%clk 0:02:54.2]} 5. Bb5 {[%clk 0:02:56.7]} 5...
a6 {[%clk 0:02:49.5]} 6. Bxc6+ {[%clk 0:02:55.8]} 6... bxc6 {[%clk 0:02:50.4]}
7. dxc5 {[%clk 0:02:55]} 7... a5 {[%clk 0:02:48.8]} 8. Be3 {[%clk 0:02:53.9]}
8... Bf5 {[%clk 0:02:45.7]} 9. Nf3 {[%clk 0:02:52.9]} 9... a4 {[%clk 0:02:40.2]}
10. O-O {[%clk 0:02:48.7]} 10... Bg4 {[%clk 0:02:37.9]} 11. Nbd2 {[%clk
0:02:47.5]} 11... e6 {[%clk 0:02:35.7]} 12. b4 {[%clk 0:02:46.3]} 12... Ne7
{[%clk 0:02:29.2]} 13. Bd4 {[%clk 0:02:35]} 13... Nf5 {[%clk 0:02:23.6]} 14. a3
{[%clk 0:02:34.6]} 14... Be7 {[%clk 0:02:19.5]} 15. Qc2 {[%clk 0:02:31.7]} 15...
O-O {[%clk 0:02:12.9]} 16. h3 {[%clk 0:02:31.6]} 16... Bxf3 {[%clk 0:02:10.6]}
17. Nxf3 {[%clk 0:02:31.6]} 17... f6 {[%clk 0:02:10.7]} 18. Rfe1 {[%clk
0:02:29.5]} 18... fxe5 {[%clk 0:02:08.1]} 19. Nxe5 {[%clk 0:02:28]} 19... Qc7
{[%clk 0:02:08.3]} 20. c4 {[%clk 0:02:20.2]} 20... Nxd4 {[%clk 0:02:04.4]} 21.
Qd3 {[%clk 0:02:16.9]} 21... Nb3 {[%clk 0:01:38.4]} 22. Ra2 {[%clk 0:02:16.4]}
22... Bf6 {[%clk 0:01:29.1]} 23. Rae2 {[%clk 0:02:16.6]} 23... Bxe5 {[%clk
0:01:21.1]} 24. Rxe5 {[%clk 0:02:16.4]} 24... Rf6 {[%clk 0:01:21.5]} 25. cxd5
{[%clk 0:02:08.7]} 25... exd5 {[%clk 0:01:14.3]} 26. Qg3 {[%clk 0:01:38.2]}
26... Raf8 {[%clk 0:01:09.4]} 27. f3 {[%clk 0:01:32.8]} 27... g6 {[%clk
0:01:06.5]} 28. Qh4 {[%clk 0:01:30.9]} 28... R8f7 {[%clk 0:00:57]} 29. Re8+
{[%clk 0:01:26.3]} 29... Kg7 {[%clk 0:00:56.6]} 30. Ra8 {[%clk 0:01:22]} 30...
Rf8 {[%clk 0:00:52]} 31. Rxf8 {[%clk 0:01:16.2]} 31... Rxf8 {[%clk 0:00:47.4]}
32. Re7+ {[%clk 0:01:15.8]} 32... Rf7 {[%clk 0:00:48]} 33. Rxc7 {[%clk
0:01:15.1]} 33... Rxc7 {[%clk 0:00:48.9]} 34. Qd8 {[%clk 0:01:13.9]} 34... Rf7
{[%clk 0:00:44.8]} 35. Qd6 {[%clk 0:01:09.5]} 35... d4 {[%clk 0:00:43.2]} 36.
Qxc6 {[%clk 0:01:07.6]} 36... d3 {[%clk 0:00:43.1]} 37. Qd5 {[%clk 0:01:08]}
37... d2 {[%clk 0:00:40.5]} 38. c6 {[%clk 0:01:05.3]} 38... Re7 {[%clk
0:00:38.7]} 39. Kf2 {[%clk 0:01:05.3]} 39... Re1 {[%clk 0:00:32.6]} 40. c7
{[%clk 0:01:04.7]} 40... d1=Q {[%clk 0:00:29.8]} 41. Qxd1 {[%clk 0:01:03.7]}
41... Rxd1 {[%clk 0:00:29.3]} 42. c8=Q {[%clk 0:01:03.7]} 42... Rd2+ {[%clk
0:00:27.9]} 43. Kg3 {[%clk 0:01:03.5]} 43... Ra2 {[%clk 0:00:25.9]} 44. Qc7+
{[%clk 0:00:58.6]} 44... Kg8 {[%clk 0:00:20.2]} 45. Qb8+ {[%clk 0:00:57]} 45...
Kg7 {[%clk 0:00:19.1]} 46. Qa7+ {[%clk 0:00:57.9]} 46... Kh6 {[%clk 0:00:18.6]}
47. Qxa4 {[%clk 0:00:58]} 1-0

[Event "*** Titled Tuesday Blitz"]
[Site "Chess.com"]
[Date "2020.04.21"]
[Round "2"]
[White "zurzan"]
[Black "Grieve72"]
[Result "1-0"]
[WhiteElo "2005"]
[BlackElo "2362"]
[TimeControl "180+1"]
[EndTime "10:17:33 PDT"]
[Termination "zurzan won on time"]

1. f4 {[%clk 0:03:00.9]} 1... c5 {[%clk 0:02:39.7]} 2. Nf3 {[%clk 0:03:00.6]}
2... g6 {[%clk 0:02:37.4]} 3. g3 {[%clk 0:03:01.5]} 3... Bg7 {[%clk 0:02:37.6]}
4. Bg2 {[%clk 0:03:02.4]} 4... d6 {[%clk 0:02:34.6]} 5. O-O {[%clk 0:03:03.3]}
5... e5 {[%clk 0:02:33.8]} 6. fxe5 {[%clk 0:03:00.2]} 6... dxe5 {[%clk
0:02:33.9]} 7. e4 {[%clk 0:02:58.2]} 7... Ne7 {[%clk 0:02:29.6]} 8. d3 {[%clk
0:02:57.6]} 8... O-O {[%clk 0:02:19.9]} 9. Qe1 {[%clk 0:02:51.3]} 9... Nbc6
{[%clk 0:02:15.6]} 10. c3 {[%clk 0:02:50.3]} 10... Qxd3 {[%clk 0:02:13.9]} 11.
Be3 {[%clk 0:02:40]} 11... b6 {[%clk 0:02:03.3]} 12. Na3 {[%clk 0:02:33.6]}
12... Bb7 {[%clk 0:01:45.7]} 13. Rd1 {[%clk 0:02:32.8]} 13... Qxe4 {[%clk
0:01:45.9]} 14. Nd4 {[%clk 0:02:23]} 14... Qg4 {[%clk 0:01:44.3]} 15. Bf3 {[%clk
0:02:02.2]} 15... Qc8 {[%clk 0:01:31.4]} 16. Ndb5 {[%clk 0:01:59.9]} 16... Ba6
{[%clk 0:01:14.3]} 17. Nd6 {[%clk 0:01:58]} 17... Qe6 {[%clk 0:01:10.1]} 18. c4
{[%clk 0:01:52.1]} 18... Rad8 {[%clk 0:01:05.1]} 19. Ndb5 {[%clk 0:01:45.3]}
19... Qc8 {[%clk 0:00:48.6]} 20. Qf2 {[%clk 0:01:22.4]} 20... f5 {[%clk
0:00:33.4]} 21. Bg5 {[%clk 0:01:19]} 21... Bf6 {[%clk 0:00:29.9]} 22. Bxf6
{[%clk 0:01:18.2]} 22... Rxf6 {[%clk 0:00:30.2]} 23. Rxd8+ {[%clk 0:01:17.5]}
23... Qxd8 {[%clk 0:00:28.8]} 24. Rd1 {[%clk 0:01:11.1]} 24... Nd4 {[%clk
0:00:28.9]} 25. Nxd4 {[%clk 0:01:08.9]} 25... cxd4 {[%clk 0:00:27.9]} 26. b3
{[%clk 0:01:01]} 26... e4 {[%clk 0:00:20.1]} 27. Bxe4 {[%clk 0:00:59.4]} 27...
fxe4 {[%clk 0:00:15.4]} 28. Qxf6 {[%clk 0:00:58.8]} 28... d3 {[%clk 0:00:14.7]}
29. Qe6+ {[%clk 0:00:57.4]} 29... Kf8 {[%clk 0:00:09.2]} 30. Qxe4 {[%clk
0:00:58.3]} 30... Bb7 {[%clk 0:00:03.2]} 31. Rf1+ {[%clk 0:00:51.1]} 31... Kg7
{[%clk 0:00:01.9]} 32. Qxb7 {[%clk 0:00:35.7]} 32... d2 {[%clk 0:00:02.2]} 33.
Qf3 {[%clk 0:00:27.7]} 1-0

[Event "*** Titled Tuesday Blitz"]
[Site "Chess.com"]
[Date "2020.04.21"]
[Round "2"]
[White "SaguriGuerra"]
[Black "IMTominho"]
[Result "0-1"]
[WhiteElo "2521"]
[BlackElo "2766"]
[TimeControl "180+1"]
[EndTime "10:17:34 PDT"]
[Termination "IMTominho won by resignation"]

1. e4 {[%clk 0:03:00.9]} 1... e5 {[%clk 0:02:59.2]} 2. Nf3 {[%clk 0:03:01]} 2...
Nf6 {[%clk 0:02:59.2]} 3. Nc3 {[%clk 0:02:57.2]} 3... Bb4 {[%clk 0:02:57.3]} 4.
Nxe5 {[%clk 0:02:56.7]} 4... O-O {[%clk 0:02:57]} 5. Nd3 {[%clk 0:02:56]} 5...
Bxc3 {[%clk 0:02:57.1]} 6. dxc3 {[%clk 0:02:56.9]} 6... Nxe4 {[%clk 0:02:57.3]}
7. c4 {[%clk 0:02:55.8]} 7... Re8 {[%clk 0:02:54.9]} 8. Be2 {[%clk 0:02:56]}
8... Qf6 {[%clk 0:02:54]} 9. O-O {[%clk 0:02:53.7]} 9... Nc6 {[%clk 0:02:53.8]}
10. Bf3 {[%clk 0:02:41]} 10... d6 {[%clk 0:02:49.3]} 11. Re1 {[%clk 0:02:40.1]}
11... Bf5 {[%clk 0:02:48.9]} 12. Nf4 {[%clk 0:02:30]} 12... Nc5 {[%clk
0:02:27.6]} 13. Rxe8+ {[%clk 0:02:15.7]} 13... Rxe8 {[%clk 0:02:26.7]} 14. Nd5
{[%clk 0:02:15.3]} 14... Qd4 {[%clk 0:02:21.8]} 15. Be3 {[%clk 0:01:59.8]} 15...
Qxd1+ {[%clk 0:01:48.4]} 16. Rxd1 {[%clk 0:01:56.4]} 16... Rc8 {[%clk
0:01:37.2]} 17. c3 {[%clk 0:01:28.7]} 17... Kf8 {[%clk 0:01:34.8]} 18. b3 {[%clk
0:01:17]} 18... Ne5 {[%clk 0:01:29.3]} 19. Be2 {[%clk 0:01:12.9]} 19... Bc2
{[%clk 0:01:13.1]} 20. Rd2 {[%clk 0:01:09.4]} 20... Bg6 {[%clk 0:01:12.9]} 21.
Bxc5 {[%clk 0:01:08.3]} 21... dxc5 {[%clk 0:01:12.6]} 22. f4 {[%clk 0:01:08.7]}
22... Nd7 {[%clk 0:01:03.3]} 23. Bg4 {[%clk 0:01:08.6]} 23... f5 {[%clk
0:01:00.2]} 24. Bf3 {[%clk 0:01:05.2]} 24... c6 {[%clk 0:01:00.4]} 25. Ne3
{[%clk 0:01:03.6]} 25... Ke7 {[%clk 0:00:58.1]} 26. g4 {[%clk 0:00:54.3]} 26...
fxg4 {[%clk 0:00:51]} 27. Bxg4 {[%clk 0:00:55.2]} 27... Rd8 {[%clk 0:00:50.3]}
28. Nf5+ {[%clk 0:00:47.3]} 28... Bxf5 {[%clk 0:00:47.7]} 29. Bxf5 {[%clk
0:00:48.2]} 29... Nf6 {[%clk 0:00:47.9]} 30. Rxd8 {[%clk 0:00:48.3]} 30... Kxd8
{[%clk 0:00:48.8]} 31. Kf2 {[%clk 0:00:49.1]} 31... Ke7 {[%clk 0:00:46.5]} 32.
Kf3 {[%clk 0:00:47]} 32... Kd6 {[%clk 0:00:45.7]} 33. h4 {[%clk 0:00:46.4]}
33... b6 {[%clk 0:00:43.5]} 34. Bd3 {[%clk 0:00:46.1]} 34... Ke6 {[%clk
0:00:43]} 35. Bf1 {[%clk 0:00:43.7]} 35... h6 {[%clk 0:00:35.4]} 36. Bh3+ {[%clk
0:00:43.7]} 36... Kd6 {[%clk 0:00:34.2]} 37. Bf1 {[%clk 0:00:41.8]} 37... Ng8
{[%clk 0:00:33.7]} 38. Ke4 {[%clk 0:00:40.4]} 38... Ke6 {[%clk 0:00:33.1]} 39.
Bh3+ {[%clk 0:00:39.6]} 39... Kf6 {[%clk 0:00:29.2]} 40. Bd7 {[%clk 0:00:38.9]}
40... Ne7 {[%clk 0:00:28.2]} 41. Be8 {[%clk 0:00:39.3]} 41... Nf5 {[%clk
0:00:24.2]} 42. h5 {[%clk 0:00:35.2]} 42... Nd6+ {[%clk 0:00:23.8]} 43. Kf3
{[%clk 0:00:35.3]} 43... Nxe8 {[%clk 0:00:24.7]} 44. Kg4 {[%clk 0:00:35.6]}
44... Nd6 {[%clk 0:00:24.8]} 45. Kf3 {[%clk 0:00:35.9]} 45... Kf5 {[%clk
0:00:25.7]} 46. Ke3 {[%clk 0:00:35.9]} 46... Ne4 {[%clk 0:00:25.5]} 47. Kf3
{[%clk 0:00:36.3]} 47... Nxc3 {[%clk 0:00:25.6]} 48. a4 {[%clk 0:00:36.5]} 48...
a5 {[%clk 0:00:24.9]} 49. Ke3 {[%clk 0:00:36.1]} 49... Ne4 {[%clk 0:00:25.1]}
50. Kf3 {[%clk 0:00:36.4]} 50... Nd2+ {[%clk 0:00:25.2]} 51. Ke3 {[%clk
0:00:36.3]} 51... Nxb3 {[%clk 0:00:26.1]} 52. Kf3 {[%clk 0:00:37.2]} 52... Nd2+
{[%clk 0:00:26]} 0-1

[Event "*** Titled Tuesday Blitz"]
[Site "Chess.com"]
[Date "2020.04.21"]
[Round "2"]
[White "AustrianFalcon"]
[Black "korkmaz16"]
[Result "1-0"]
[WhiteElo "2594"]
[BlackElo "2304"]
[TimeControl "180+1"]
[EndTime "10:17:34 PDT"]
[Termination "AustrianFalcon won by resignation"]

1. e4 {[%clk 0:03:00.1]} 1... e6 {[%clk 0:01:09.6]} 2. d4 {[%clk 0:02:51.7]}
2... d5 {[%clk 0:01:08.8]} 3. Nc3 {[%clk 0:02:52.6]} 3... Nf6 {[%clk 0:01:08.8]}
4. Bg5 {[%clk 0:02:43]} 4... Be7 {[%clk 0:01:08.6]} 5. e5 {[%clk 0:02:39.4]}
5... Nfd7 {[%clk 0:01:08.3]} 6. h4 {[%clk 0:02:38.4]} 6... Bxg5 {[%clk
0:01:07.9]} 7. hxg5 {[%clk 0:02:35.7]} 7... Qxg5 {[%clk 0:01:08.8]} 8. Nh3
{[%clk 0:02:34]} 8... Qe7 {[%clk 0:01:08.9]} 9. Qg4 {[%clk 0:02:27.4]} 9... f5
{[%clk 0:01:08.4]} 10. exf6 {[%clk 0:02:06.2]} 10... Nxf6 {[%clk 0:01:08]} 11.
Qg3 {[%clk 0:02:06.8]} 11... Nc6 {[%clk 0:00:55.8]} 12. O-O-O {[%clk 0:02:02.2]}
12... a6 {[%clk 0:00:54.6]} 13. Bd3 {[%clk 0:02:02.7]} 13... Bd7 {[%clk
0:00:53.7]} 14. Rhe1 {[%clk 0:01:58.8]} 14... O-O-O {[%clk 0:00:53.2]} 15. Nf4
{[%clk 0:01:57.2]} 15... Rhf8 {[%clk 0:00:48.6]} 16. Nfxd5 {[%clk 0:01:55.1]}
16... exd5 {[%clk 0:00:48.6]} 17. Nxd5 {[%clk 0:01:56]} 17... Qd6 {[%clk
0:00:48.9]} 18. Qxd6 {[%clk 0:01:48]} 18... cxd6 {[%clk 0:00:48.9]} 19. Ne7+
{[%clk 0:01:48.6]} 19... Nxe7 {[%clk 0:00:48.4]} 20. Rxe7 {[%clk 0:01:49.2]}
20... g6 {[%clk 0:00:46]} 21. Rh1 {[%clk 0:01:22.8]} 21... Rde8 {[%clk
0:00:45.3]} 22. Rxe8+ {[%clk 0:01:21.7]} 22... Rxe8 {[%clk 0:00:46.2]} 23. Kd2
{[%clk 0:01:22]} 23... Re7 {[%clk 0:00:44.9]} 24. f3 {[%clk 0:01:19.6]} 24... d5
{[%clk 0:00:45]} 25. Rh4 {[%clk 0:01:15.5]} 25... Kc7 {[%clk 0:00:45.3]} 26. Rf4
{[%clk 0:01:15.4]} 26... Ne8 {[%clk 0:00:44.3]} 27. Rf8 {[%clk 0:01:14.8]} 27...
Nd6 {[%clk 0:00:44.8]} 28. b3 {[%clk 0:01:13.8]} 28... Bf5 {[%clk 0:00:44.6]}
29. c4 {[%clk 0:01:13.6]} 29... Bxd3 {[%clk 0:00:44.5]} 30. Kxd3 {[%clk
0:01:13.6]} 30... dxc4+ {[%clk 0:00:45]} 31. bxc4 {[%clk 0:01:14.5]} 31... Nf5
{[%clk 0:00:45.2]} 32. g4 {[%clk 0:01:09.8]} 32... Nd6 {[%clk 0:00:42.1]} 33. c5
{[%clk 0:01:08.8]} 33... Nb5 {[%clk 0:00:41.1]} 34. d5 {[%clk 0:01:09.2]} 34...
Rd7 {[%clk 0:00:41.1]} 35. Kc4 {[%clk 0:00:55.8]} 35... b6 {[%clk 0:00:39.4]}
36. a4 {[%clk 0:00:46]} 36... Na3+ {[%clk 0:00:38.2]} 37. Kb3 {[%clk 0:00:41.3]}
37... Nb1 {[%clk 0:00:38.5]} 38. Kb4 {[%clk 0:00:31.8]} 38... bxc5+ {[%clk
0:00:37.1]} 39. Kxc5 {[%clk 0:00:31.7]} 39... Nc3 {[%clk 0:00:37.7]} 40. d6+
{[%clk 0:00:29.7]} 40... Kb7 {[%clk 0:00:37.8]} 41. a5 {[%clk 0:00:27]} 41...
Na4+ {[%clk 0:00:36.4]} 42. Kd5 {[%clk 0:00:27.3]} 42... Nc3+ {[%clk 0:00:35.6]}
43. Ke6 {[%clk 0:00:27.6]} 43... Kc6 {[%clk 0:00:30]} 44. Rc8+ {[%clk
0:00:26.7]} 44... Kb7 {[%clk 0:00:29.5]} 45. Kxd7 {[%clk 0:00:26.5]} 45... Nd5
{[%clk 0:00:29.9]} 46. Rc7+ {[%clk 0:00:26.5]} 1-0

[Event "*** Titled Tuesday Blitz"]
[Site "Chess.com"]
[Date "2020.04.21"]
[Round "2"]
[White "GM_LOADING"]
[Black "queen_iryna"]
[Result "1-0"]
[WhiteElo "2512"]
[BlackElo "2275"]
[TimeControl "180+1"]
[EndTime "10:17:34 PDT"]
[Termination "GM_LOADING won by resignation"]

1. e4 {[%clk 0:03:00.9]} 1... d6 {[%clk 0:03:00.1]} 2. d4 {[%clk 0:03:00.5]}
2... Nf6 {[%clk 0:03:00.8]} 3. Nc3 {[%clk 0:03:00.1]} 3... e5 {[%clk 0:03:01.4]}
4. Nf3 {[%clk 0:03:00]} 4... Nbd7 {[%clk 0:03:01.1]} 5. Bc4 {[%clk 0:02:58.8]}
5... Be7 {[%clk 0:03:01]} 6. O-O {[%clk 0:02:58.6]} 6... O-O {[%clk 0:03:01]} 7.
Re1 {[%clk 0:02:57.9]} 7... c6 {[%clk 0:02:58.4]} 8. a4 {[%clk 0:02:58.2]} 8...
h6 {[%clk 0:02:58.2]} 9. a5 {[%clk 0:02:56.2]} 9... Re8 {[%clk 0:02:57.3]} 10.
dxe5 {[%clk 0:02:14.4]} 10... dxe5 {[%clk 0:02:55.7]} 11. Bd2 {[%clk 0:02:02.5]}
11... Bf8 {[%clk 0:02:54.7]} 12. Qb1 {[%clk 0:01:52.9]} 12... Nc5 {[%clk
0:02:42.2]} 13. Qa2 {[%clk 0:01:43.8]} 13... Qc7 {[%clk 0:02:32.7]} 14. h3
{[%clk 0:01:36.8]} 14... Be6 {[%clk 0:02:31]} 15. b4 {[%clk 0:01:25]} 15... Ncd7
{[%clk 0:02:25.5]} 16. Bxe6 {[%clk 0:01:15.7]} 16... Rxe6 {[%clk 0:02:26.4]} 17.
Qc4 {[%clk 0:01:15.9]} 17... Qd6 {[%clk 0:02:13.3]} 18. Rab1 {[%clk 0:00:44.5]}
18... Ree8 {[%clk 0:02:01.1]} 19. Be3 {[%clk 0:00:43.2]} 19... Qe6 {[%clk
0:01:54.8]} 20. Qe2 {[%clk 0:00:40.6]} 20... Nh5 {[%clk 0:01:48.2]} 21. Red1
{[%clk 0:00:36.9]} 21... Ndf6 {[%clk 0:01:20.6]} 22. b5 {[%clk 0:00:32.8]} 22...
Nf4 {[%clk 0:01:18.9]} 23. Bxf4 {[%clk 0:00:32.9]} 23... exf4 {[%clk 0:01:19.8]}
24. a6 {[%clk 0:00:29.1]} 24... bxa6 {[%clk 0:01:17.8]} 25. Nd4 {[%clk
0:00:29.3]} 25... Qc8 {[%clk 0:01:08.4]} 26. bxc6 {[%clk 0:00:27.4]} 26... Bc5
{[%clk 0:01:05.6]} 27. Qc4 {[%clk 0:00:20.5]} 27... Bb6 {[%clk 0:00:53.9]} 28.
Nf5 {[%clk 0:00:16.4]} 28... Qe6 {[%clk 0:00:30.9]} 29. Qxe6 {[%clk 0:00:13.1]}
29... Rxe6 {[%clk 0:00:31.8]} 30. Nd5 {[%clk 0:00:12.1]} 30... Nxe4 {[%clk
0:00:23.2]} 31. Rxb6 {[%clk 0:00:10.9]} 31... axb6 {[%clk 0:00:21.7]} 32. Nc7
{[%clk 0:00:10.9]} 32... Rc8 {[%clk 0:00:20.7]} 33. Nxe6 {[%clk 0:00:10.8]}
33... fxe6 {[%clk 0:00:21.6]} 34. Ne7+ {[%clk 0:00:11.1]} 34... Kf7 {[%clk
0:00:21]} 35. Nxc8 {[%clk 0:00:12]} 35... Nc5 {[%clk 0:00:19.9]} 36. Nd6+ {[%clk
0:00:11.5]} 36... Ke7 {[%clk 0:00:19.4]} 37. c7 {[%clk 0:00:11.9]} 1-0

[Event "*** Titled Tuesday Blitz"]
[Site "Chess.com"]
[Date "2020.04.21"]
[Round "2"]
[White "KuzubovYuriy"]
[Black "enriquetejedor"]
[Result "1-0"]
[WhiteElo "2761"]
[BlackElo "2519"]
[TimeControl "180+1"]
[EndTime "10:17:35 PDT"]
[Termination "KuzubovYuriy won by resignation"]

1. d4 {[%clk 0:03:00.9]} 1... Nf6 {[%clk 0:02:59.3]} 2. Nf3 {[%clk 0:03:00.2]}
2... d5 {[%clk 0:02:54]} 3. c4 {[%clk 0:03:00.1]} 3... e6 {[%clk 0:02:53.6]} 4.
Nc3 {[%clk 0:02:59.9]} 4... Bb4 {[%clk 0:02:53.3]} 5. Bg5 {[%clk 0:02:59.3]}
5... h6 {[%clk 0:02:52.8]} 6. Qa4+ {[%clk 0:02:58.8]} 6... Nc6 {[%clk
0:02:52.5]} 7. Bxf6 {[%clk 0:02:58.6]} 7... Qxf6 {[%clk 0:02:53.4]} 8. e3 {[%clk
0:02:59.1]} 8... O-O {[%clk 0:02:53.2]} 9. Rd1 {[%clk 0:02:59.1]} 9... a6 {[%clk
0:02:27.6]} 10. Qb3 {[%clk 0:02:50.6]} 10... dxc4 {[%clk 0:02:22]} 11. Qxc4
{[%clk 0:02:45.1]} 11... Bd7 {[%clk 0:02:14.3]} 12. Be2 {[%clk 0:02:37.9]} 12...
Rad8 {[%clk 0:02:00]} 13. O-O {[%clk 0:02:34.4]} 13... Bd6 {[%clk 0:01:51.1]}
14. Ne4 {[%clk 0:02:28.8]} 14... Qe7 {[%clk 0:01:48.4]} 15. Nxd6 {[%clk
0:02:26.5]} 15... cxd6 {[%clk 0:01:48.3]} 16. d5 {[%clk 0:02:22.5]} 16... exd5
{[%clk 0:01:36.9]} 17. Qxd5 {[%clk 0:02:09.5]} 17... Be6 {[%clk 0:01:36]} 18.
Qd3 {[%clk 0:02:07.8]} 18... Bxa2 {[%clk 0:01:27.1]} 19. b3 {[%clk 0:02:06.7]}
19... Nb4 {[%clk 0:01:21.8]} 20. Qd2 {[%clk 0:01:59.2]} 20... a5 {[%clk
0:01:20.6]} 21. Nd4 {[%clk 0:01:58.3]} 21... Rc8 {[%clk 0:00:51.6]} 22. Ra1
{[%clk 0:01:56.6]} 22... d5 {[%clk 0:00:40.7]} 23. Rxa2 {[%clk 0:01:53.8]} 23...
Nxa2 {[%clk 0:00:41.4]} 24. Qxa2 {[%clk 0:01:54.7]} 24... Qb4 {[%clk 0:00:41.1]}
25. h4 {[%clk 0:01:49.2]} 25... Rfe8 {[%clk 0:00:35.4]} 26. Qb1 {[%clk
0:01:44.2]} 26... Re4 {[%clk 0:00:30.7]} 27. g3 {[%clk 0:01:41.6]} 27... Rce8
{[%clk 0:00:26.9]} 28. Bf3 {[%clk 0:01:38.9]} 28... R4e5 {[%clk 0:00:24.3]} 29.
Qd3 {[%clk 0:01:35.5]} 29... h5 {[%clk 0:00:23.6]} 30. Rc1 {[%clk 0:01:32.6]}
30... g6 {[%clk 0:00:23.4]} 31. Kg2 {[%clk 0:01:32.6]} 31... Kg7 {[%clk
0:00:22.1]} 32. Rc7 {[%clk 0:01:31.2]} 32... R8e7 {[%clk 0:00:21.6]} 33. Rxe7
{[%clk 0:01:27.6]} 33... Qxe7 {[%clk 0:00:22]} 34. Qb5 {[%clk 0:01:26.5]} 34...
Qb4 {[%clk 0:00:18.4]} 35. Qxb4 {[%clk 0:01:26.3]} 35... axb4 {[%clk 0:00:19]}
36. Nc2 {[%clk 0:01:27]} 36... Rf5 {[%clk 0:00:11.1]} 37. Nxb4 {[%clk
0:01:24.8]} 37... d4 {[%clk 0:00:10.8]} 38. Nd3 {[%clk 0:01:20.7]} 38... dxe3
{[%clk 0:00:09.9]} 39. fxe3 {[%clk 0:01:21]} 39... Rb5 {[%clk 0:00:09.1]} 40. b4
{[%clk 0:01:20.6]} 40... b6 {[%clk 0:00:07.4]} 41. e4 {[%clk 0:01:18.4]} 41...
Kf6 {[%clk 0:00:04.3]} 42. Bd1 {[%clk 0:01:15.7]} 42... Re5 {[%clk 0:00:01.5]}
43. Nxe5 {[%clk 0:01:15.3]} 43... Kxe5 {[%clk 0:00:02.1]} 44. Kf3 {[%clk
0:01:15.9]} 44... f6 {[%clk 0:00:02]} 45. Bb3 {[%clk 0:01:15]} 45... g5 {[%clk
0:00:01.5]} 46. Bf7 {[%clk 0:01:14.2]} 1-0